bitfinex/quotes_SOLUSD_20241231
["timestamp","ask_amount","ask_price","bid_price","bid_amount"]
[1735683930649,5.12459489,192.02,191.99,8.33040641]
[1735683931147,1.30577464,192.01,191.99,8.33040641]
[1735683932046,3.39535735,192.0,191.99,8.33040641]
[1735683933141,1.30577464,192.0,191.99,8.33040641]
[1735683939430,5.0,192.04,191.99,8.33040641]
[1735683939630,5.0,192.04,192.01,8.33040641]
[1735683939942,5.0,192.02,191.98,8.33040641]
[1735683940256,5.0,192.02,191.95,6.4865]
[1735683940257,5.0,192.02,191.99,8.33040641]
[1735683940832,1.30603354,192.01,191.99,8.33040641]
[1735683941461,1.30603354,192.0,191.99,8.33040641]
[1735683942151,1.30603354,192.0,191.98,8.33040641]
[1735683942954,5.0,192.02,191.98,8.33040641]
[1735683943256,4.7183409,192.04,191.98,8.33040641]
[1735683943443,5.0,192.02,191.98,8.33040641]
[1735683943756,1.30615344,192.01,191.98,8.33040641]
[1735683944465,5.0,192.02,191.98,8.33040641]
[1735683945262,4.7183409,192.04,191.98,8.33040641]
[1735683945466,5.0,192.02,191.98,8.33040641]
[1735683946944,1.30618931,192.01,191.98,8.33040641]
[1735683947468,5.0,192.02,191.98,8.33040641]
[1735683948965,1.30614978,192.01,191.98,8.33040641]
[1735683949353,1.30614978,192.01,191.96,8.33040641]
[1735683949662,5.0,192.02,191.96,8.33040641]
[1735683950444,5.0,192.02,191.94,13.0247]
[1735683950668,5.0,192.02,191.96,8.33040641]
[1735683950871,1.30615085,192.01,191.97,20.0]
[1735683951168,1.30615085,192.01,191.96,8.33040641]
[1735683951169,5.0,191.98,191.92,7.6906]
[1735683951468,5.0,191.98,191.93,8.33040641]
[1735683952266,1.30615085,191.97,191.87,33.0296]
[1735683952466,1.30615085,191.97,191.93,8.33040641]
[1735683953269,1.30615085,191.96,191.95,8.33040641]
[1735683956443,3.39624188,192.02,191.95,8.33040641]
[1735683956645,3.83309853,192.01,191.97,8.33040641]
[1735683957350,1.30615085,192.0,191.97,8.33040641]
[1735683957872,1.30615085,191.99,191.97,8.33040641]
[1735683958775,1.30615085,191.98,191.97,8.33040641]
[1735683964875,1.30615085,191.98,191.97,20.0]
[1735683965170,1.30615085,191.98,191.97,28.33040641]
[1735683967377,1.30615085,191.98,191.93,8.33040641]
[1735683967554,4.7183409,191.97,191.93,8.33040641]
[1735683967745,5.0,191.97,191.93,8.33040641]
[1735683967949,6.30615085,191.96,191.92,8.33040641]
[1735683968145,1.30615085,191.96,191.92,8.33040641]
[1735683968678,1.30615085,191.95,191.92,8.33040641]
[1735683969459,1.30615085,191.94,191.92,8.33040641]
[1735683970186,5.0,191.97,191.92,8.33040641]
[1735683970478,5.0,191.96,191.89,13.0279]
[1735683970776,5.0,191.96,191.91,8.33040641]
[1735683971082,1.30662594,191.95,191.91,8.33040641]
[1735683971779,1.30662594,191.94,191.91,8.33040641]
[1735683972365,1.30662594,191.93,191.91,8.33040641]
[1735683972880,6.30662594,191.93,191.89,13.0279]
[1735683973077,6.30662594,191.93,191.91,8.33040641]
[1735683973383,5.0,191.93,191.91,8.33040641]
[1735683973578,5.0,191.91,191.87,8.33040641]
[1735683974084,5.0,191.91,191.84,1.5869]
[1735683974085,5.0,191.91,191.89,8.33040641]
[1735683975386,5.0,191.93,191.89,8.33040641]
[1735683975683,5.0,191.92,191.89,8.33040641]
[1735683975861,5.0,191.92,191.91,8.33040641]
[1735683976057,5.0,191.94,191.91,8.33040641]
[1735683976261,5.0,191.93,191.91,8.33040641]
[1735683976694,5.0,191.92,191.91,8.33040641]
[1735683976863,5.0,191.96,191.91,8.33040641]
[1735683977073,1.30683735,191.92,191.89,13.0279]
[1735683977386,1.30683735,191.92,191.91,8.33040641]
[1735683977882,5.0,191.96,191.91,8.33040641]
[1735683978584,1.3066259,191.95,191.91,8.33040641]
[1735683979393,1.3066259,191.94,191.91,8.33040641]
[1735683979687,1.3066259,191.94,191.93,8.33040641]
[1735683980063,5.0,192.0,191.93,8.33040641]
[1735683980771,1.30653487,191.99,191.93,8.33040641]
[1735683981386,1.30653487,191.98,191.93,8.33040641]
[1735683981761,1.30653487,191.98,191.95,8.33040641]
[1735683981961,1.30653487,191.98,191.96,8.33040641]
[1735683982182,1.30653487,191.97,191.96,8.33040641]
[1735683982896,9.7183409,192.02,191.96,8.33040641]
[1735683983190,5.0,192.02,191.96,8.33040641]
[1735683983560,1.30630162,192.01,191.96,8.33040641]
[1735683984486,1.30630162,192.0,191.96,8.33040641]
[1735683985289,1.30630162,191.99,191.96,8.33040641]
[1735683985793,5.0,192.02,191.96,8.33040641]
[1735683985794,1.30630162,191.98,191.96,8.33040641]
[1735683986888,1.30630162,191.97,191.96,8.33040641]
[1735683987384,5.0,192.01,191.96,8.33040641]
[1735683987691,9.7183409,192.02,191.96,8.33040641]
[1735683987992,5.0,192.02,191.96,8.33040641]
[1735683988184,1.30635386,192.01,191.96,8.33040641]
[1735683988498,5.0,192.0,191.96,8.33040641]
[1735683989010,6.30635386,192.0,191.96,8.33040641]
[1735683989585,1.30635386,191.99,191.96,8.33040641]
[1735683989788,1.30635386,191.99,191.93,14.6751]
[1735683989968,6.30635386,191.99,191.93,14.6751]
[1735683990294,5.0,191.97,191.93,1.65]
[1735683990779,1.30635386,191.96,191.93,1.65]
[1735683991289,1.30635386,191.95,191.93,1.65]
[1735683992097,5.0,191.97,191.93,1.65]
[1735683992698,5.0,191.99,191.94,8.33040641]
[1735683993079,1.30643818,191.96,191.94,8.33040641]
[1735683993798,5.0,191.97,191.94,8.33040641]
[1735683995098,1.3064136,191.96,191.94,8.33040641]
[1735683995772,1.3064136,191.95,191.94,8.33040641]
[1735683999212,1.3064136,191.95,191.93,20.0]
[1735683999400,6.3064136,191.95,191.9,21.35760641]
[1735683999700,6.3064136,191.95,191.92,8.33040641]
[1735683999899,6.3064136,191.95,191.91,8.33040641]
[1735684000197,1.3064136,191.94,191.91,8.33040641]
[1735684001098,5.0,191.95,191.85,8.08137676]
[1735684001308,5.0,191.92,191.88,8.33040641]
[1735684001802,1.3067473,191.91,191.88,8.33040641]
[1735684002495,1.3067473,191.9,191.88,8.33040641]
[1735684003289,5.0,191.92,191.88,8.33040641]
[1735684003600,5.0,191.92,191.9,8.33040641]
[1735684004102,1.3067789,191.91,191.9,8.33040641]
[1735684011509,5.0,191.96,191.9,8.33040641]
[1735684011683,5.0,191.96,191.89,19.2477]
[1735684011684,5.0,191.96,191.94,8.33040641]
[1735684012396,1.3065871,191.95,191.94,8.33040641]
[1735684018806,19.60504731,192.04,191.97,20.0]
[1735684018996,5.0,192.01,191.97,20.0]
[1735684019409,5.0,192.02,191.97,20.0]
[1735684019600,1.30636152,192.03,191.97,20.0]
[1735684019601,5.0,192.01,191.97,20.0]
[1735684020121,6.30636152,192.01,191.97,20.0]
[1735684020913,1.30636152,192.0,191.97,20.0]
[1735684021735,1.30636152,191.99,191.98,20.0]
[1735684022423,1.30636152,191.99,191.97,8.33040641]
[1735684023110,1.30636152,191.98,191.97,8.33040641]
[1735684027319,5.0,192.03,191.97,8.33040641]
[1735684027499,5.0,192.02,191.99,8.33040641]
[1735684027686,5.0,192.03,191.99,8.33040641]
[1735684028018,1.30618187,192.02,191.99,8.33040641]
[1735684028804,1.30618187,192.01,191.99,8.33040641]
[1735684029419,1.30618187,192.01,192.0,8.33040641]
[1735684029607,5.0,192.03,192.0,8.33040641]
[1735684030120,1.30618167,192.02,192.0,8.33040641]
[1735684030626,5.0,192.03,192.0,8.33040641]
[1735684030919,1.30616921,192.01,191.97,13.0223]
[1735684031093,1.30616921,192.01,192.0,8.33040641]
[1735684032506,5.0,192.06,192.0,8.33040641]
[1735684032701,5.0,192.06,192.02,8.33040641]
[1735684033293,1.30600062,192.05,192.03,8.33040641]
[1735684033505,1.30600062,192.05,192.04,8.33040641]
[1735684034596,1.30600062,192.05,192.04,14.52270641]
[1735684034805,5.0,192.11,192.07,20.0]
[1735684035013,5.0,192.14,192.1,8.33040641]
[1735684035625,5.0,192.16,192.1,8.33040641]
[1735684035797,5.0,192.14,192.1,8.33040641]
[1735684037604,5.0,192.14,192.11,8.33040641]
[1735684038736,5.0,192.15,192.11,8.33040641]
[1735684041236,5.0,192.14,192.11,8.33040641]
[1735684041742,5.0,192.15,192.11,8.33040641]
[1735684042527,5.0,192.13,192.07,33.016]
[1735684042730,5.0,192.11,192.08,8.33040641]
[1735684043204,5.0,192.13,192.08,8.33040641]
[1735684043918,5.0,192.13,192.09,8.33040641]
[1735684045334,5.0,192.12,192.09,8.33040641]
[1735684046107,5.0,192.13,192.09,8.33040641]
[1735684046530,5.0,192.14,192.09,8.33040641]
[1735684047537,5.0,192.13,192.09,8.33040641]
[1735684047825,5.0,192.15,192.09,8.33040641]
[1735684048019,5.0,192.13,192.09,8.33040641]
[1735684048231,5.0,192.15,192.09,8.33040641]
[1735684048630,5.0,192.15,192.11,8.33040641]
[1735684049445,5.0,192.14,192.11,8.33040641]
[1735684049813,5.0,192.15,192.11,8.33040641]
[1735684051447,5.0,192.13,192.11,8.33040641]
[1735684052637,5.0,192.15,192.11,8.33040641]
[1735684054042,5.0,192.14,192.11,8.33040641]
[1735684055812,5.0,192.15,192.11,8.33040641]
[1735684056521,5.0,192.14,192.11,8.33040641]
[1735684057648,5.0,192.15,192.11,8.33040641]
[1735684057842,5.0,192.16,192.12,28.33040641]
[1735684058150,5.0,192.15,192.12,28.33040641]
[1735684058344,5.0,192.16,192.12,28.33040641]
[1735684058850,5.0,192.15,192.12,28.33040641]
[1735684062728,5.0,192.14,192.12,28.33040641]
[1735684063058,5.0,192.15,192.12,28.33040641]
[1735684063233,5.0,192.16,192.12,28.33040641]
[1735684063753,5.0,192.15,192.12,28.33040641]
[1735684064231,5.0,192.16,192.13,8.33040641]
[1735684065260,6.30528757,192.15,192.13,8.33040641]
[1735684066054,5.0,192.15,192.13,8.33040641]
[1735684066957,5.0,192.16,192.13,8.33040641]
[1735684067151,5.0,192.15,192.13,8.33040641]
[1735684067339,6.3052883,192.15,192.13,8.33040641]
[1735684067530,6.3052883,192.15,192.12,20.0]
[1735684067736,5.0,192.12,192.06,14.6808]
[1735684067931,5.0,192.11,192.08,8.33040641]
[1735684068353,5.0,192.11,192.09,28.33040641]
[1735684070264,5.0,192.11,192.1,8.33040641]
[1735684074249,6.30544962,192.11,192.1,8.33040641]
[1735684077158,5.0,192.09,192.06,14.6808]
[1735684077349,5.0,192.08,192.06,1.6645]
[1735684077861,5.0,192.08,192.07,8.33040641]
[1735684079168,6.30548144,192.08,192.07,8.33040641]
[1735684079665,6.30548144,192.08,192.03,13.0184]
[1735684079960,5.0,192.06,192.03,21.34880641]
[1735684080140,5.0,192.06,192.05,20.0]
[1735684080340,5.0,192.06,192.03,21.34880641]
[1735684080751,5.0,192.06,192.05,28.33040641]
[1735684080752,6.30548144,192.06,192.05,28.33040641]
[1735684082665,5.0,192.06,192.05,28.33040641]
[1735684085462,5.0,192.06,192.0,33.32162564]
[1735684085463,5.0,192.06,192.0,13.0205]
[1735684085674,5.0,192.04,192.0,13.0205]
[1735684085975,5.0,192.04,192.03,20.0]
[1735684086783,5.0,192.04,192.03,28.33040641]
[1735684086974,5.0,192.05,192.03,28.33040641]
[1735684087180,5.0,192.05,192.04,8.33040641]
[1735684089676,5.0,192.06,192.04,8.33040641]
[1735684090452,5.0,192.07,192.04,8.33040641]
[1735684090650,4.7183409,192.11,192.0,33.32162564]
[1735684090651,5.0,192.09,192.06,8.33040641]
[1735684090869,5.0,192.09,192.07,8.33040641]
[1735684092452,5.0,192.11,192.08,8.33040641]
[1735684092657,5.0,192.14,192.1,8.33040641]
[1735684092847,5.0,192.14,192.12,8.33040641]
[1735684093065,5.0,192.15,192.12,8.33040641]
[1735684093466,5.0,192.14,192.12,8.33040641]
[1735684093672,5.0,192.16,192.13,8.33040641]
[1735684094374,5.0,192.16,192.14,8.33040641]
[1735684094575,5.0,192.17,192.14,8.33040641]
[1735684095250,5.0,192.16,192.14,8.33040641]
[1735684095875,5.0,192.14,192.13,8.33040641]
[1735684096077,5.0,192.15,192.13,8.33040641]
[1735684096651,5.0,192.16,192.13,8.33040641]
[1735684096860,5.0,192.16,192.14,8.33040641]
[1735684097067,5.0,192.15,192.14,8.33040641]
[1735684097257,5.0,192.19,192.14,8.33040641]
[1735684097583,5.0,192.19,192.15,8.33040641]
[1735684098483,5.0,192.18,192.15,8.33040641]
[1735684099078,5.0,192.19,192.15,8.33040641]
[1735684099288,5.0,192.2,192.16,8.33040641]
[1735684099478,5.0,192.21,192.16,8.33040641]
[1735684099681,5.0,192.21,192.17,8.33040641]
[1735684100287,5.0,192.19,192.17,8.33040641]
[1735684100499,9.7183409,192.22,192.17,8.33040641]
[1735684100859,5.0,192.24,192.19,8.33040641]
[1735684101170,5.0,192.23,192.19,8.33040641]
[1735684101373,5.0,192.23,192.2,8.33040641]
[1735684101677,5.0,192.24,192.2,8.33040641]
[1735684102276,5.0,192.23,192.2,8.33040641]
[1735684102473,5.0,192.24,192.2,8.33040641]
[1735684104063,9.7183409,192.24,192.19,8.33040641]
[1735684104464,5.0,192.23,192.19,8.33040641]
[1735684107490,9.7183409,192.24,192.19,8.33040641]
[1735684107698,5.0,192.23,192.19,8.33040641]
[1735684108297,5.0,192.22,192.19,8.33040641]
[1735684108495,5.0,192.21,192.19,8.33040641]
[1735684109998,5.0,192.21,192.2,20.0]
[1735684110593,5.0,192.23,192.2,20.0]
[1735684110893,5.0,192.21,192.2,20.0]
[1735684111466,5.0,192.23,192.2,20.0]
[1735684112294,5.0,192.21,192.2,20.0]
[1735684112597,5.0,192.23,192.2,20.0]
[1735684113890,5.0,192.24,192.19,8.33040641]
[1735684114097,5.0,192.23,192.19,8.33040641]
[1735684115094,5.0,192.22,192.19,8.33040641]
[1735684115975,5.0,192.22,192.18,8.33040641]
[1735684116696,5.0,192.23,192.19,8.33040641]
[1735684118101,5.0,192.21,192.19,8.33040641]
[1735684119000,5.0,192.21,192.2,8.33040641]
[1735684119191,5.0,192.26,192.22,20.0]
[1735684119499,5.0,192.27,192.23,8.33040641]
[1735684119692,5.0,192.26,192.23,8.33040641]
[1735684123102,5.0,192.27,192.23,8.33040641]
[1735684123291,4.7183409,192.28,192.23,8.33040641]
[1735684123292,5.0,192.26,192.23,8.33040641]
[1735684127511,5.0,192.23,192.21,8.33040641]
[1735684127711,4.7183409,192.27,192.21,8.33040641]
[1735684127712,5.0,192.26,192.21,8.33040641]
[1735684127883,5.0,192.25,192.21,8.33040641]
[1735684128215,5.0,192.25,192.22,8.33040641]
[1735684128510,5.0,192.26,192.25,20.0]
[1735684128678,5.0,192.26,192.23,8.33040641]
[1735684128882,5.0,192.26,192.25,20.0]
[1735684131116,5.0,192.27,192.26,20.0]
[1735684135519,5.0,192.29,192.25,8.33040641]
[1735684135809,5.0,192.3,192.26,8.33040641]
[1735684137617,5.0,192.3,192.25,8.33040641]
[1735684138419,5.0,192.3,192.27,13.0025]
[1735684139421,5.0,192.33,192.3,20.0]
[1735684140014,5.0,192.34,192.29,21.33110641]
[1735684142013,5.0,192.35,192.29,21.33110641]
[1735684142222,5.0,192.34,192.29,21.33110641]
[1735684142515,5.0,192.36,192.3,8.33040641]
[1735684142720,5.0,192.33,192.3,8.33040641]
[1735684142894,5.0,192.33,192.32,20.0]
[1735684145318,5.0,192.34,192.32,20.0]
[1735684146527,5.0,192.35,192.32,20.0]
[1735684146920,9.7183409,192.36,192.32,20.0]
[1735684147125,5.0,192.35,192.32,20.0]
[1735684148722,5.0,192.35,192.33,8.33040641]
[1735684148902,1.5263,192.42,192.29,20.8203]
[1735684148903,5.0,192.38,192.37,20.0]
[1735684149098,5.0,192.38,192.37,28.33040641]
[1735684150507,5.0,192.38,192.37,20.0]
[1735684152521,5.0,192.37,192.31,38.9985]
[1735684152725,5.0,192.36,192.31,38.9985]
[1735684152923,5.0,192.36,192.34,8.33040641]
[1735684160230,5.0,192.39,192.34,8.33040641]
[1735684160544,5.0,192.36,192.34,8.33040641]
[1735684167751,5.0,192.36,192.35,20.0]
[1735684169650,5.0,192.32,192.29,7.8196]
[1735684169842,5.0,192.32,192.3,8.33040641]
[1735684170549,5.0,192.32,192.3,21.33080641]
[1735684171948,5.0,192.31,192.25,13.0039]
[1735684172151,5.0,192.29,192.25,13.0039]
[1735684172460,5.0,192.29,192.28,8.33040641]
[1735684190152,5.0,192.3,192.29,13.0011]
[1735684190355,5.0,192.3,192.29,21.33150641]
[1735684202052,5.0,192.3,192.24,8.1332]
[1735684202053,5.0,192.27,192.26,13.0031]
[1735684202554,5.0,192.24,192.23,13.0049]
[1735684204565,5.0,192.24,192.23,8.33040641]
[1735684204862,5.0,192.22,192.2,13.0072]
[1735684205060,5.0,192.21,192.2,13.0072]
[1735684206260,5.0,192.21,192.19,8.33040641]
[1735684206473,5.0,192.18,192.17,13.009]
[1735684207570,5.0,192.18,192.17,20.0]
[1735684207873,5.0,192.18,192.17,28.33040641]
[1735684216469,5.0,192.15,192.14,13.0113]
[1735684216664,5.0,192.14,192.13,8.33040641]
[1735684217172,9.7183409,192.14,192.13,8.33040641]
[1735684217548,9.7183409,192.12,192.11,8.33040641]
[1735684218047,5.0,192.08,192.07,13.0158]
[1735684218248,5.0,192.08,192.07,21.34620641]
[1735684218456,5.0,192.08,192.07,13.0158]
[1735684218661,5.0,192.08,192.07,21.34620641]
[1735684223165,0.208,192.12,192.1,20.0]
[1735684223372,0.208,192.12,192.11,8.33040641]
[1735684225056,4.9263409,192.12,192.11,8.33040641]
[1735684226079,4.7183409,192.12,192.11,8.33040641]
[1735684226379,4.9263409,192.12,192.11,8.33040641]
[1735684226750,4.7183409,192.14,192.11,8.33040641]
[1735684226961,4.9263409,192.14,192.13,20.0]
[1735684227381,0.208,192.12,192.11,8.33040641]
[1735684229184,0.208,192.12,192.11,20.0]
[1735684229375,0.208,192.12,192.1,8.33040641]
[1735684229682,0.208,192.11,192.1,8.33040641]
[1735684231382,0.208,192.11,192.09,21.34500641]
[1735684231583,4.7183409,192.09,192.08,8.33040641]
[1735684231910,0.208,192.09,192.08,8.33040641]
[1735684233174,4.9263409,192.09,192.08,8.33040641]
[1735684234067,0.208,192.09,192.08,8.33040641]
[1735684234287,4.9263409,192.09,192.08,8.33040641]
[1735684237882,0.208,192.09,192.08,8.33040641]
[1735684238900,4.9263409,192.1,192.08,8.33040641]
[1735684239078,0.208,192.1,192.08,8.33040641]
[1735684239273,4.9263409,192.1,192.08,8.33040641]
[1735684239501,4.7183409,192.09,192.08,8.33040641]
[1735684240208,4.9263409,192.09,192.08,8.33040641]
[1735684246107,4.9263409,192.09,192.08,20.0]
[1735684248201,4.7183409,192.09,192.08,20.0]
[1735684248407,4.9263409,192.09,192.08,20.0]
[1735684249703,4.9263409,192.09,192.06,21.34700641]
[1735684249905,0.208,192.04,192.03,8.33040641]
[1735684252213,0.208,192.02,192.01,8.33040641]
[1735684255313,0.208,191.98,191.96,23.776884]
[1735684256405,0.208,192.0,191.99,20.0]
[1735684256710,0.208,192.01,192.0,8.33040641]
[1735684259712,4.9263409,192.02,192.0,8.33040641]
[1735684259906,0.208,192.01,191.99,20.0]
[1735684260499,0.208,192.0,191.99,20.0]
[1735684262517,0.208,192.0,191.99,28.33040641]
[1735684265292,0.208,192.02,191.99,28.33040641]
[1735684265615,0.208,192.0,191.99,33.021]
[1735684267217,0.208,192.0,191.99,41.35140641]
[1735684268121,0.208,192.0,191.99,8.33040641]
[1735684269122,0.208,192.0,191.98,8.33040641]
[1735684269496,0.208,191.99,191.98,8.33040641]
[1735684276603,0.208,191.99,191.98,20.0]
[1735684276950,0.208,191.99,191.98,28.33040641]
[1735684277424,0.208,192.01,191.98,28.33040641]
[1735684277726,0.208,191.99,191.96,13.0231]
[1735684277923,0.208,191.99,191.98,8.33040641]
[1735684278828,0.208,191.99,191.96,13.0231]
[1735684279132,0.208,191.99,191.98,8.33040641]
[1735684279831,4.7183409,192.07,192.02,20.0]
[1735684280705,4.7183409,192.07,192.06,8.33040641]
[1735684281014,4.7183409,192.07,192.05,8.33040641]
[1735684282637,4.7183409,192.07,192.02,13.0194]
[1735684282638,4.7183409,192.06,192.04,8.33040641]
[1735684284924,4.7183409,192.05,192.04,8.33040641]
[1735684286534,4.7183409,192.06,192.04,8.33040641]
[1735684287430,4.7183409,192.06,192.01,13.0196]
[1735684287612,4.7183409,192.06,192.04,8.33040641]
[1735684288432,4.7183409,192.07,192.04,8.33040641]
[1735684288828,4.7183409,192.06,192.04,8.33040641]
[1735684289031,4.7183409,192.06,192.01,13.0196]
[1735684289336,4.7183409,192.06,192.04,8.33040641]
[1735684292014,4.7183409,192.07,192.05,8.33040641]
[1735684292821,4.7183409,192.08,192.05,8.33040641]
[1735684294841,4.7183409,192.07,192.05,8.33040641]
[1735684299334,4.7183409,192.07,192.04,8.33040641]
[1735684299539,4.7183409,192.04,192.03,8.33040641]
[1735684300225,4.7183409,192.05,192.03,8.33040641]
[1735684300424,4.7183409,192.04,192.03,8.33040641]
[1735684301738,4.7183409,192.03,191.98,21.1371]
[1735684302044,4.7183409,192.03,192.02,8.33040641]
[1735684304840,4.7183409,192.05,192.02,8.33040641]
[1735684305044,4.7183409,192.05,192.04,8.33040641]
[1735684305345,4.7183409,192.05,192.03,8.33040641]
[1735684306047,4.7183409,192.04,192.03,8.33040641]
[1735684307748,4.7183409,192.05,192.03,8.33040641]
[1735684309546,4.7183409,192.04,192.0,13.0205]
[1735684309848,4.7183409,192.0,191.98,8.19738919]
[1735684310055,4.7183409,192.0,191.98,16.5277956]
[1735684310551,4.7183409,192.0,191.99,8.33040641]
[1735684310858,4.7183409,192.01,191.99,8.33040641]
[1735684311827,4.7183409,192.0,191.96,13.023]
[1735684312034,4.7183409,192.0,191.99,8.33040641]
[1735684312340,4.7183409,192.01,191.99,8.33040641]
[1735684314155,4.7183409,192.0,191.99,8.33040641]
[1735684315355,4.7183409,192.01,191.99,8.33040641]
[1735684316060,4.7183409,192.0,191.99,8.33040641]
[1735684316229,4.7183409,192.01,191.99,8.33040641]
[1735684316854,4.7183409,192.01,191.96,13.023]
[1735684317055,4.7183409,192.0,191.96,13.023]
[1735684317355,4.7183409,192.0,191.99,8.33040641]
[1735684317656,4.7183409,192.01,191.96,13.023]
[1735684318359,4.7183409,192.01,192.0,8.33040641]
[1735684320144,4.7183409,191.97,191.93,28.74878919]
[1735684320346,4.7183409,191.97,191.96,8.33040641]
[1735684321435,4.7183409,191.95,191.93,8.19738919]
[1735684321633,4.7183409,191.95,191.94,8.33040641]
[1735684333060,4.7183409,191.96,191.94,8.33040641]
[1735684333671,4.7183409,191.97,191.96,20.0]
[1735684333855,4.7183409,191.97,191.96,28.33040641]
[1735684337656,4.7183409,191.98,191.96,28.33040641]
[1735684338275,4.7183409,191.97,191.96,28.33040641]
[1735684339546,4.7183409,191.97,191.96,20.0]
[1735684339748,4.7183409,191.98,191.97,20.0]
[1735684344558,4.7183409,191.95,191.94,8.33040641]
[1735684347584,4.7183409,191.95,191.92,8.33040641]
[1735684347771,4.7183409,191.93,191.92,8.33040641]
[1735684348589,4.7183409,191.93,191.92,7.83040641]
[1735684349561,4.7183409,191.91,191.9,8.33040641]
[1735684353883,4.7183409,191.91,191.9,28.33040641]
[1735684355784,4.7183409,191.91,191.9,20.0]
[1735684355974,4.7183409,191.91,191.9,28.33040641]
[1735684357376,4.7183409,191.88,191.84,8.0407]
[1735684357582,4.7183409,191.88,191.87,8.33040641]
[1735684359092,4.7183409,191.88,191.84,21.0721]
[1735684359298,4.7183409,191.87,191.84,21.0721]
[1735684359673,4.7183409,191.87,191.86,20.0]
[1735684360889,4.7183409,191.87,191.86,28.33040641]
[1735684361274,8.33040641,191.95,191.79,13.0346]
[1735684361275,4.7183409,191.84,191.79,13.0346]
[1735684361696,4.7183409,191.84,191.83,8.33040641]
[1735684362794,4.7183409,191.84,191.83,28.33040641]
[1735684367399,4.7183409,191.84,191.82,20.0]
[1735684367711,4.7183409,191.84,191.83,28.33040641]
[1735684380016,4.7183409,191.9,191.83,32.10729041]
[1735684380223,4.7183409,191.9,191.88,8.33040641]
[1735684380515,4.7183409,191.91,191.9,20.0]
[1735684380702,4.7183409,191.89,191.88,8.33040641]
[1735684381315,4.7183409,191.87,191.86,8.33040641]
[1735684382717,4.7183409,191.87,191.86,20.0]
[1735684382885,4.7183409,191.87,191.84,8.33040641]
[1735684383489,4.7183409,191.85,191.82,8.33040641]
[1735684383718,4.7183409,191.83,191.82,8.33040641]
[1735684384214,4.7183409,191.84,191.82,8.33040641]
[1735684384604,4.7183409,191.82,191.8,14.5396]
[1735684384806,4.7183409,191.82,191.81,8.33040641]
[1735684385698,4.7183409,191.81,191.76,26.0736]
[1735684385895,4.7183409,191.81,191.8,8.33040641]
[1735684386218,4.7183409,191.81,191.8,20.0]
[1735684387217,4.7183409,191.79,191.75,7.9405]
[1735684387424,4.7183409,191.79,191.78,30.7579343]
[1735684387722,4.7183409,191.82,191.81,20.0]
[1735684388024,4.7183409,191.82,191.81,28.33040641]
[1735684389824,4.7183409,191.84,191.81,28.33040641]
[1735684390126,4.7183409,191.82,191.81,20.0]
[1735684392527,4.7183409,191.82,191.81,28.33040641]
[1735684393031,4.7183409,191.82,191.8,8.33040641]
[1735684393217,4.7183409,191.81,191.8,28.33040641]
[1735684394102,4.7183409,191.81,191.78,22.42752789]
[1735684394428,4.7183409,191.81,191.8,8.33040641]
[1735684395325,4.7183409,191.81,191.79,8.33040641]
[1735684395525,4.7183409,191.81,191.8,8.33040641]
[1735684398012,4.7183409,191.81,191.79,8.33040641]
[1735684398318,4.7183409,191.8,191.79,8.33040641]
[1735684398705,4.7183409,191.81,191.79,8.33040641]
[1735684400339,4.7183409,191.81,191.8,8.33040641]
[1735684401131,4.7183409,191.8,191.79,8.33040641]
[1735684401332,4.7183409,191.81,191.78,22.42752789]
[1735684401541,4.7183409,191.79,191.78,22.42752789]
[1735684401708,4.7183409,191.79,191.78,30.7579343]
[1735684403432,4.7183409,191.81,191.78,30.7579343]
[1735684403730,4.7183409,191.8,191.79,8.33040641]
[1735684403931,4.7183409,191.81,191.79,8.33040641]
[1735684404114,4.7183409,191.8,191.79,8.33040641]
[1735684404313,4.7183409,191.81,191.79,8.33040641]
[1735684404827,4.7183409,191.8,191.79,8.33040641]
[1735684405534,4.7183409,191.81,191.79,8.33040641]
[1735684405847,4.7183409,191.8,191.79,8.33040641]